bitfinex/quotes_SOLUSD_20250219
["timestamp","ask_amount","ask_price","bid_price","bid_amount"]
[1739960109644,1.03,172.0,171.93,81.9]
[1739960109645,13.33540635,171.96,171.93,81.9]
[1739960109821,13.33540635,171.98,171.95,1.0]
[1739960110023,5.8439,172.0,171.97,1.0]
[1739960110227,0.03,172.0,171.97,81.9]
[1739960110846,5.8439,172.0,171.97,81.9]
[1739960111638,13.33540635,171.98,171.97,80.9]
[1739960111840,5.8146,171.98,171.97,80.9]
[1739960112542,19.15000635,171.98,171.97,80.9]
[1739960113045,5.8146,171.98,171.97,80.9]
[1739960113218,19.14970635,171.99,171.97,80.9]
[1739960113555,5.8143,171.99,171.97,80.9]
[1739960113920,19.14970635,171.99,171.97,80.9]
[1739960114119,13.33540635,171.98,171.97,80.9]
[1739960114619,13.33540635,171.98,171.95,80.9]
[1739960114838,13.33540635,171.96,171.95,80.9]
[1739960116151,19.15070635,171.96,171.95,80.9]
[1739960116938,13.33540635,171.97,171.95,80.9]
[1739960117144,39.14970635,171.99,171.95,81.9]
[1739960117453,25.8143,171.99,171.95,81.9]
[1739960117629,20.0,171.99,171.97,1.0]
[1739960117833,20.0,171.99,171.95,81.9]
[1739960117834,13.33540635,171.98,171.95,81.9]
[1739960118034,13.33540635,171.96,171.95,80.9]
[1739960120466,19.15070635,171.96,171.95,80.9]
[1739960120817,19.15000635,171.98,171.95,81.9]
[1739960121038,5.8146,171.98,171.96,1.0]
[1739960121234,5.8146,171.98,171.95,80.9]
[1739960121235,13.33540635,171.97,171.95,81.9]
[1739960121443,13.33540635,171.96,171.95,81.9]
[1739960121942,13.33540635,171.96,171.95,80.9]
[1739960122653,5.8153,171.96,171.95,80.9]
[1739960123846,13.33540635,171.97,171.95,80.9]
[1739960124035,5.8145,171.99,171.97,1.0]
[1739960124645,13.36540635,172.0,171.97,1.0]
[1739960124833,0.03,172.0,171.99,1.0]
[1739960125023,0.03,172.0,171.99,81.9]
[1739960126059,0.03,172.0,171.99,233.53540635]
[1739960126560,0.03,172.0,171.99,220.2]
[1739960131079,0.03,172.0,171.99,219.2]
[1739960131400,19.17930635,172.0,171.99,219.2]
[1739960132098,19.17930635,172.0,171.99,80.9]
[1739960132983,0.03,172.0,171.99,80.9]
[1739960133787,13.36540635,172.0,171.99,80.9]
[1739960134477,0.03,172.0,171.99,80.9]
[1739960136059,13.36540635,172.0,171.99,80.9]
[1739960136259,0.03,172.0,171.99,80.9]
[1739960139118,0.03,172.0,171.99,81.9]
[1739960145802,0.03,172.0,171.99,80.9]
[1739960146107,0.03,172.0,171.99,81.9]
[1739960146617,0.03,172.0,171.99,80.9]
[1739960146804,0.03,172.0,171.99,81.9]
[1739960147903,0.03,172.0,171.99,80.9]
[1739960148109,0.03,172.0,171.99,81.9]
[1739960148549,0.03,172.0,171.99,80.9]
[1739960149202,0.03,172.0,171.99,81.9]
[1739960150023,0.03,172.0,171.99,80.9]
[1739960150209,0.03,172.0,171.99,81.9]
[1739960150924,0.03,172.0,171.99,80.9]
[1739960151111,0.03,172.0,171.99,81.9]
[1739960153233,0.03,172.0,171.99,220.2]
[1739960155730,28.54533433,172.0,171.94,1.0]
[1739960155911,8.51533433,171.95,171.93,80.9]
[1739960156117,8.51533433,171.94,171.9,80.9]
[1739960156330,8.51533433,171.93,171.9,81.9]
[1739960156631,8.51533433,171.94,171.92,1.0]
[1739960157133,8.51533433,171.96,171.94,1.0]
[1739960157323,34.33023433,171.98,171.94,81.9]
[1739960157521,25.8149,171.98,171.95,1.0]
[1739960157704,5.8149,171.98,171.95,1.0]
[1739960158233,5.8143,171.99,171.97,1.0]
[1739960158554,0.03,172.0,171.97,81.9]
[1739960158905,5.8439,172.0,171.97,81.9]
[1739960159206,0.03,172.0,171.98,1.0]
[1739960160340,0.03,172.0,171.99,1.0]
[1739960161208,0.03,172.0,171.98,219.2]
[1739960161425,13.33369471,172.0,171.98,219.2]
[1739960161625,13.30369471,171.99,171.98,219.2]
[1739960161827,19.11789471,171.99,171.98,219.2]
[1739960163417,19.11789471,171.99,171.95,1.0]
[1739960163619,13.30369471,171.97,171.95,80.9]
[1739960164525,13.30369471,171.96,171.95,80.9]
[1739960165545,19.11899471,171.96,171.95,80.9]
[1739960166140,13.30369471,171.96,171.95,81.9]
[1739960166322,13.30369471,171.96,171.95,80.9]
[1739960167244,19.11859471,171.97,171.95,80.9]
[1739960167652,13.30369471,171.96,171.95,80.9]
[1739960167827,13.30369471,171.96,171.95,72.52193017]
[1739960168029,19.11859471,171.97,171.95,72.52193017]
[1739960168227,13.30369471,171.96,171.95,72.52193017]
[1739960169047,13.30369471,171.96,171.91,1.0]
[1739960169225,13.30369471,171.93,171.91,73.52193017]
[1739960169836,19.12009471,171.93,171.91,72.52193017]
[1739960170239,5.8164,171.93,171.91,73.52193017]
[1739960173570,5.8164,171.93,171.91,72.52193017]
[1739960173757,5.8164,171.93,171.91,73.52193017]
[1739960173956,5.8164,171.93,171.91,72.52193017]
[1739960174135,5.8164,171.93,171.91,73.52193017]
[1739960174529,5.8164,171.93,171.91,72.52193017]
[1739960175147,5.8164,171.93,171.91,73.52193017]
[1739960176463,5.8164,171.93,171.91,72.52193017]
[1739960176960,19.12009471,171.93,171.91,72.52193017]
[1739960177961,13.30369471,171.92,171.91,72.52193017]
[1739960178338,20.0,171.89,171.87,0.063]
[1739960178633,19.12169471,171.88,171.87,0.063]
[1739960179261,5.818,171.88,171.87,0.063]
[1739960180671,18.03184853,171.92,171.87,1.063]
[1739960180672,5.8173,171.9,171.87,1.063]
[1739960180843,5.817,171.91,171.89,1.0]
[1739960181036,17.92369471,171.93,171.9,1.0]
[1739960181237,5.8167,171.92,171.9,73.52193017]
[1739960181460,5.8167,171.92,171.9,72.52193017]
[1739960182146,19.12039471,171.92,171.9,72.52193017]
[1739960182340,13.30369471,171.91,171.9,72.52193017]
[1739960182544,19.12059471,171.91,171.9,72.52193017]
[1739960182744,5.8169,171.91,171.9,72.52193017]
[1739960183250,4.62,171.93,171.91,1.0]
[1739960183251,5.8165,171.93,171.91,1.0]
[1739960183449,13.30369471,171.92,171.87,0.063]
[1739960183650,13.30369471,171.9,171.87,1.063]
[1739960183962,33.30369471,171.9,171.87,1.063]
[1739960184666,5.8176,171.89,171.87,1.063]
[1739960184844,5.8176,171.89,171.87,73.58493017]
[1739960185745,5.8176,171.89,171.87,72.58493017]
[1739960185946,19.12129471,171.89,171.87,72.58493017]
[1739960186971,13.30369471,171.88,171.87,72.58493017]
[1739960187141,5.8176,171.89,171.87,73.58493017]
[1739960187542,5.8176,171.89,171.88,1.0]
[1739960187752,31.42097663,171.95,171.9,1.0]
[1739960187753,33.65989471,171.94,171.9,1.0]
[1739960187959,20.3562,171.94,171.91,1.0]
[1739960188153,20.3562,171.94,171.9,72.52193017]
[1739960188358,33.65989471,171.94,171.9,72.52193017]
[1739960188758,33.30369471,171.91,171.9,72.52193017]
[1739960188954,33.30369471,171.91,171.87,210.88493017]
[1739960189263,13.30369471,171.9,171.87,0.063]
[1739960190169,5.8176,171.89,171.87,0.063]
[1739960190375,19.12129471,171.89,171.87,0.063]
[1739960191575,5.8176,171.89,171.87,0.063]
[1739960192076,19.12129471,171.89,171.87,0.063]
[1739960192773,5.8176,171.89,171.87,0.063]
[1739960192956,13.30369471,171.91,171.88,1.0]
[1739960193156,23.73959471,171.94,171.88,86.82562488]
[1739960193362,13.30369471,171.93,171.88,73.52193017]
[1739960193675,13.30369471,171.92,171.89,1.0]
[1739960194054,5.8169,171.91,171.89,1.0]
[1739960194777,5.8169,171.91,171.88,73.52193017]
[1739960194950,5.8169,171.91,171.88,72.52193017]
[1739960195249,5.8169,171.91,171.88,73.52193017]
[1739960195451,5.8169,171.91,171.88,72.52193017]
[1739960195850,19.12059471,171.91,171.88,72.52193017]
[1739960196172,5.8176,171.89,171.88,72.52193017]
[1739960196882,32.53314324,171.89,171.87,0.063]
[1739960197182,13.30369471,171.88,171.87,0.063]
[1739960197554,26.71554324,171.88,171.84,72.52193017]
[1739960197871,13.30369471,171.85,171.84,72.52193017]
[1739960198077,13.30369471,171.85,171.82,1.0]
[1739960198613,19.12289471,171.85,171.81,1.0]
[1739960199179,19.12289471,171.85,171.82,1.0]
[1739960199350,19.12289471,171.85,171.81,1.0]
[1739960200180,19.12289471,171.85,171.82,1.0]
[1739960200378,19.12289471,171.85,171.81,1.0]
[1739960200690,19.12289471,171.85,171.82,1.0]
[1739960201883,13.30369471,171.84,171.81,1.0]
[1739960202076,13.30369471,171.84,171.81,73.52193017]
[1739960202660,8.53311237,171.84,171.81,73.52193017]
[1739960203581,28.53311237,171.82,171.79,0.063]
[1739960203880,28.53311237,171.82,171.8,1.0]
[1739960203881,25.8202,171.82,171.8,1.0]
[1739960204379,10.4397,171.83,171.81,1.0]
[1739960204894,10.4397,171.83,171.8,1.0]
[1739960205681,23.77229855,171.83,171.8,1.0]
[1739960205880,10.4397,171.83,171.81,1.0]
[1739960206085,5.8197,171.83,171.81,1.0]
[1739960207002,5.8193,171.84,171.81,1.0]
[1739960208100,13.33259855,171.84,171.81,1.0]
[1739960208298,13.33259855,171.84,171.8,1.0]
[1739960208520,13.33259855,171.83,171.79,72.58493017]
[1739960208705,13.33259855,171.82,171.79,72.58493017]
[1739960209209,13.33259855,171.81,171.79,72.58493017]
[1739960209390,13.33259855,171.8,171.79,0.063]
[1739960209999,19.15329855,171.8,171.79,0.063]
[1739960210592,32.56514708,171.8,171.79,0.063]
[1739960210799,32.56514708,171.8,171.79,0.0001]
[1739960211315,20.0,171.75,171.73,0.063]
[1739960211516,26.74444708,171.74,171.73,0.063]
[1739960211683,13.33259855,171.74,171.73,0.063]
[1739960212278,32.56714708,171.74,171.73,0.063]
[1739960212900,19.15529855,171.74,171.73,0.063]
[1739960213074,20.0,171.75,171.73,1.063]
[1739960213278,33.33259855,171.75,171.73,1.063]
[1739960213500,20.0,171.75,171.73,1.063]
[1739960214001,20.0,171.75,171.69,0.063]
[1739960214002,1.0,171.72,171.69,0.063]
[1739960214186,13.41184853,171.69,171.65,0.063]
[1739960214387,13.33259855,171.66,171.64,72.52193017]
[1739960214702,15.65919445,171.69,171.64,72.52193017]
[1739960214703,13.33259855,171.65,171.64,72.52193017]
[1739960216490,19.15839855,171.65,171.64,72.52193017]
[1739960216990,5.8254,171.67,171.64,73.52193017]
[1739960217178,19.15799855,171.67,171.64,73.52193017]
[1739960217381,5.8254,171.67,171.64,73.52193017]
[1739960217580,5.8254,171.67,171.66,1.0]
[1739960218503,13.33259855,171.67,171.66,73.52193017]
[1739960218718,13.33259855,171.67,171.66,72.52193017]
[1739960218917,13.33259855,171.67,171.66,73.52193017]
[1739960219086,13.33259855,171.67,171.61,11.91253017]
[1739960219290,13.33259855,171.65,171.62,1.0]
[1739960219486,13.33259855,171.65,171.61,0.063]
[1739960219487,13.33259855,171.63,171.61,0.063]
[1739960219789,33.33259855,171.62,171.61,0.063]
[1739960220514,5.8271,171.61,171.6,0.063]
[1739960220725,19.15969855,171.61,171.6,0.063]
[1739960221586,39.15939855,171.62,171.6,1.063]
[1739960221794,17.97259855,171.63,171.6,1.063]
[1739960221994,17.97259855,171.67,171.63,1.0]
[1739960222205,4.64,171.67,171.64,1.0]
[1739960222421,5.8244,171.69,171.66,1.0]
[1739960222919,27.18979274,171.69,171.66,1.0]
[1739960223218,5.8244,171.69,171.66,1.0]
[1739960223517,92.42,171.7,171.67,1.0]
[1739960223728,92.42,171.7,171.68,1.0]
[1739960224425,5.8238,171.71,171.68,1.0]
[1739960224717,18.05184853,171.74,171.72,1.0]
[1739960224718,21.36539274,171.74,171.72,1.0]
[1739960224879,27.18739274,171.76,171.72,1.0]
[1739960225320,21.36539274,171.75,171.71,1.0]
[1739960225685,21.36539274,171.74,171.72,1.0]
[1739960225895,21.36539274,171.73,171.69,10.84953017]
[1739960226084,21.36539274,171.7,171.69,10.84953017]
[1739960226316,21.36539274,171.7,171.68,1.0]
[1739960226626,21.36539274,171.73,171.7,1.0]
[1739960226821,21.36539274,171.72,171.69,1.0]
[1739960226987,21.36539274,171.72,171.68,1.0]
[1739960227307,21.36539274,171.72,171.69,1.0]
[1739960227697,21.36539274,171.72,171.7,1.0]
[1739960227906,21.36539274,171.71,171.68,0.03]
[1739960228088,21.36539274,171.69,171.68,0.03]
[1739960228414,21.36539274,171.71,171.68,1.03]
[1739960228607,21.36539274,171.71,171.68,0.03]
[1739960228905,5.8244,171.69,171.68,0.03]
[1739960229311,27.18939274,171.71,171.68,0.03]
[1739960229995,21.36539274,171.72,171.71,1.0]
[1739960230325,113.80539274,171.78,171.74,1.0]
[1739960230520,98.2614,171.78,171.76,1.0]
[1739960231194,119.62679274,171.78,171.75,1.0]
[1739960231395,98.2614,171.78,171.76,1.0]
[1739960231589,98.2614,171.78,171.77,1.0]
[1739960232003,98.2614,171.78,171.75,1.0]
[1739960232291,119.62679274,171.78,171.76,1.0]
[1739960232514,92.44,171.78,171.77,1.0]
[1739960232720,5.8207,171.8,171.78,1.0]
[1739960232902,5.8207,171.8,171.79,1.0]
[1739960233107,5.8204,171.81,171.79,1.0]
[1739960233494,27.18539274,171.82,171.8,1.0]
[1739960233714,5.82,171.82,171.8,1.0]
[1739960234106,27.18499274,171.84,171.82,1.0]
[1739960234422,5.8196,171.84,171.83,1.0]
[1739960234598,27.18439274,171.85,171.84,1.0]
[1739960235309,5.819,171.85,171.84,1.0]
[1739960236594,27.18439274,171.85,171.8,1.0]
[1739960236809,21.36539274,171.81,171.77,1.0]
[1739960237120,27.18699274,171.78,171.76,10.84953017]
[1739960237302,21.36539274,171.77,171.72,11.84953017]
[1739960237501,21.36539274,171.73,171.72,11.84953017]
[1739960237699,21.36539274,171.73,171.72,10.84953017]
[1739960237924,21.36539274,171.73,171.72,11.84953017]
[1739960238123,21.36539274,171.73,171.72,1.0]
[1739960238304,21.36539274,171.75,171.73,1.0]
[1739960238845,21.36539274,171.75,171.74,1.0]
[1739960239912,27.18779274,171.75,171.74,1.0]
[1739960240231,27.18779274,171.75,171.71,1.0]
[1739960240436,21.36539274,171.72,171.71,1.0]
[1739960240807,5.8224,171.75,171.71,1.0]
[1739960240808,21.36539274,171.73,171.71,1.0]
[1739960241337,27.18849274,171.73,171.71,1.0]
[1739960241525,21.36539274,171.72,171.69,1.0]
[1739960241832,21.36539274,171.7,171.68,150.17953017]
[1739960242412,21.36539274,171.7,171.69,1.0]
[1739960243025,21.36539274,171.71,171.7,1.0]
[1739960243240,27.18819274,171.74,171.71,1.0]
[1739960243612,27.18819274,171.74,171.72,1.0]
[1739960244110,21.36539274,171.73,171.72,1.0]
[1739960244338,21.36539274,171.74,171.72,1.0]
[1739960244545,27.18819274,171.74,171.72,1.0]
[1739960244711,21.36539274,171.73,171.71,1.0]
[1739960244912,21.36539274,171.72,171.7,1.0]
[1739960245445,21.36539274,171.71,171.7,1.0]
[1739960247348,27.18909274,171.71,171.7,1.0]
[1739960248023,27.18909274,171.71,171.69,1.0]
[1739960248229,27.18909274,171.71,171.7,1.0]
[1739960248436,27.18909274,171.71,171.68,149.17953017]
[1739960248624,21.36539274,171.69,171.68,0.03]
[1739960249620,27.18979274,171.69,171.68,0.03]
[1739960250537,21.36539274,171.7,171.68,1.03]
[1739960250832,5.8241,171.7,171.68,1.03]
[1739960251043,5.8237,171.71,171.7,1.0]
[1739960251342,27.18909274,171.71,171.7,1.0]
[1739960251638,27.18909274,171.71,171.68,1.03]
[1739960252540,27.18909274,171.71,171.69,1.0]
[1739960252715,27.18909274,171.71,171.7,1.0]
[1739960253755,5.8237,171.71,171.7,1.0]
[1739960256619,2.95992437,171.76,171.7,1.0]
[1739960256827,5.8224,171.75,171.74,1.0]
[1739960257426,27.18779274,171.75,171.72,1.0]
[1739960257745,21.36539274,171.73,171.7,150.14953017]
[1739960257948,21.36539274,171.73,171.7,11.84953017]
[1739960258141,21.36539274,171.73,171.71,1.0]
[1739960259846,5.8234,171.72,171.71,1.0]
[1739960260547,27.18849274,171.73,171.71,1.0]
[1739960261438,5.8231,171.73,171.71,1.0]
[1739960263049,0.063,171.73,171.72,1.0]
[1739960264050,0.063,171.73,171.72,25.19867254]
[1739960264435,0.063,171.73,171.72,31.02207254]
[1739960265127,0.063,171.73,171.72,169.32207254]
[1739960265330,19.16914237,171.82,171.8,1.0]
[1739960265532,17.96914237,171.83,171.8,1.0]
[1739960265736,23.78884237,171.83,171.8,1.0]
[1739960267054,13.34914237,171.82,171.8,1.0]
[1739960267255,13.34914237,171.81,171.79,1.0]
[1739960267449,13.34914237,171.8,171.77,1.0]
[1739960267659,13.34914237,171.78,171.77,1.0]
[1739960268029,13.34914237,171.78,171.76,1.0]
[1739960268236,13.34914237,171.77,171.75,11.84953017]
[1739960269052,13.34914237,171.77,171.76,1.0]
[1739960269257,19.17104237,171.77,171.76,1.0]
[1739960269443,19.17104237,171.77,171.75,10.84953017]
[1739960269444,13.34914237,171.79,171.77,1.0]
[1739960269642,13.34914237,171.8,171.78,1.0]
[1739960270239,23.78904237,171.83,171.8,1.0]
[1739960270452,10.4399,171.83,171.81,1.0]
[1739960270657,4.62,171.83,171.82,1.0]
[1739960270956,27.15206385,171.84,171.82,1.0]
[1739960271359,21.33266385,171.83,171.81,10.84953017]
[1739960271560,21.33266385,171.82,171.81,10.84953017]
[1739960271765,13.41184853,171.81,171.78,1.0]
[1739960271941,21.33266385,171.79,171.77,1.0]
[1739960272558,21.33266385,171.8,171.79,1.0]
[1739960272749,41.33266385,171.8,171.79,1.0]
[1739960273246,47.15336385,171.8,171.79,1.0]
[1739960274140,47.15336385,171.8,171.78,1.0]
[1739960274337,21.33266385,171.79,171.78,1.0]
[1739960274542,47.15336385,171.8,171.79,1.0]
[1739960274939,21.33266385,171.81,171.79,1.0]
[1739960275144,27.15196385,171.84,171.83,1.0]
[1739960275539,27.15196385,171.84,171.82,1.0]
[1739960275850,21.33266385,171.83,171.82,1.0]
[1739960276761,0.063,171.93,171.84,20.0]
[1739960276955,5.688e-05,172.0,171.99,20.51]
[1739960277145,54.02440848,172.05,172.02,16.41184853]
[1739960277347,54.02440848,172.05,172.04,23.0]
[1739960277548,19.58980848,172.05,172.04,177.96213017]
[1739960277964,8.48e-06,172.05,172.04,224.80524255]
[1739960278149,4.37316819,172.16,172.12,1.0]
[1739960278748,21.36266385,172.13,172.12,1.0]
[1739960278947,21.36266385,172.13,172.11,1.0]
[1739960279147,21.33266385,172.12,172.11,1.0]
[1739960279343,0.03,172.13,172.12,1.0]
[1739960279860,21.33266385,172.13,172.1,1.0]
[1739960280057,21.33266385,172.12,172.1,1.0]
[1739960280255,21.33266385,172.12,172.11,1.0]
[1739960281375,20.0,172.1,172.09,53.6064274]
[1739960281665,41.33266385,172.1,172.09,53.6064274]
[1739960282468,41.33266385,172.1,172.09,52.6064274]
[1739960282850,5.8093,172.14,172.11,1.0]
[1739960283052,21.33266385,172.12,172.1,1.0]
[1739960283380,21.33266385,172.11,172.09,52.6064274]
[1739960283582,21.33266385,172.1,172.09,52.6064274]
[1739960284882,41.33266385,172.11,172.1,1.0]
[1739960286184,47.14286385,172.11,172.1,1.0]
[1739960289879,47.14286385,172.11,172.04,170.48219402]
[1739960289880,47.14286385,172.11,172.07,1.0]
[1739960290187,41.33266385,172.08,172.07,1.0]
[1739960290490,47.14386385,172.08,172.07,1.0]
[1739960290781,47.14386385,172.08,172.06,1.0]
[1739960290967,21.33266385,172.07,172.06,1.0]
[1739960291761,47.14386385,172.08,172.06,1.0]
[1739960291964,47.14386385,172.08,172.07,1.0]
[1739960293875,5.8112,172.08,172.07,1.0]
[1739960294679,21.33266385,172.1,172.09,1.0]
[1739960295978,20.0,172.07,172.04,10.84953017]
[1739960296166,20.0,172.07,172.04,149.14953017]
[1739960296767,5.8119,172.06,172.04,149.14953017]
[1739960297169,25.8117,172.07,172.04,149.14953017]
[1739960297772,21.33266385,172.06,172.04,149.14953017]
[1739960297981,21.33266385,172.05,172.04,149.14953017]
[1739960298197,21.33266385,172.05,171.99,149.14953017]
[1739960298493,21.33266385,172.04,171.99,149.14953017]
[1739960298665,5.8129,172.03,171.99,149.14953017]
[1739960299096,41.33266385,172.07,172.01,21.33266385]
[1739960299262,5.8119,172.06,172.03,21.33266385]
[1739960299461,5.8119,172.06,172.03,170.48219402]
[1739960299981,14.5266,172.1,172.04,21.33266385]
[1739960300170,35.85926385,172.1,172.04,170.48219402]
[1739960300968,5.8109,172.09,172.04,170.48219402]
[1739960301367,27.14356385,172.09,172.04,149.14953017]
[1739960302389,21.33266385,172.08,172.04,149.14953017]
[1739960303188,5.8115,172.07,172.04,149.14953017]
[1739960303392,5.8112,172.09,172.04,149.14953017]
[1739960303587,5.8112,172.09,172.04,170.48219402]
[1739960304693,5.8112,172.09,172.04,149.14953017]
[1739960305067,27.14386385,172.09,172.04,149.14953017]
[1739960306584,21.33266385,172.08,172.04,149.14953017]
[1739960308370,41.67106385,172.09,172.04,149.14953017]
[1739960308608,27.14386385,172.09,172.04,149.14953017]
[1739960308773,5.8112,172.09,172.05,21.33266385]
[1739960309191,5.8102,172.11,172.06,1.10266323]
[1739960309367,27.14216385,172.14,172.08,21.33266385]
[1739960309574,27.14216385,172.14,172.08,183.50759402]
[1739960309899,21.33266385,172.13,172.08,162.17493017]
[1739960310382,0.03,172.1,172.08,162.17493017]
[1739960311589,21.36266385,172.1,172.04,10.91253017]
[1739960311775,21.33266385,172.07,172.04,149.21253017]
[1739960312104,21.33266385,172.08,172.04,149.21253017]
[1739960312909,5.8115,172.07,172.04,149.21253017]
[1739960313777,21.33266385,172.09,172.04,149.21253017]
[1739960314075,5.8112,172.08,172.04,149.21253017]
[1739960315206,21.36266385,172.1,172.04,149.21253017]
[1739960315385,5.8406,172.1,172.06,21.33266385]
[1739960315891,5.8406,172.1,172.05,21.33266385]
[1739960316217,27.17326385,172.1,172.04,170.54519402]
[1739960316413,5.8406,172.1,172.04,170.54519402]
[1739960316570,5.8406,172.1,172.05,21.33266385]
[1739960317196,0.03,172.1,172.05,21.33266385]
[1739960317509,0.03,172.1,172.07,21.33266385]
[1739960317813,0.03,172.1,172.07,170.48219402]
[1739960318593,0.03,172.1,172.09,21.33266385]
[1739960318797,0.03,172.1,172.09,170.48219402]
[1739960318999,0.03,172.1,172.09,149.14953017]
[1739960321227,0.03,172.1,172.09,153.36319871]
[1739960321417,0.03,172.1,172.09,174.69586256]
[1739960321731,0.03,172.1,172.09,180.50676256]
[1739960322101,0.03,172.1,172.09,174.69586256]
[1739960322709,0.03,172.1,172.09,186.86996121]
[1739960322913,0.03,172.1,172.09,190.32826121]
[1739960323103,0.03,172.1,172.09,193.71514219]
[1739960324221,0.03,172.1,172.09,192.71514219]
[1739960325016,0.03,172.1,172.09,173.49239366]
[1739960325403,0.03,172.1,172.09,156.75007969]
[1739960325808,0.03,172.1,172.09,170.03409366]
[1739960325994,0.03,172.1,172.09,156.75007969]
[1739960326193,0.03,172.1,172.09,175.84499366]
[1739960326398,0.03,172.1,172.09,172.45811268]
[1739960326618,0.03,172.1,172.09,187.86996121]
[1739960326823,0.03,172.1,172.09,200.26376121]
[1739960326999,0.03,172.1,172.09,199.26376121]
[1739960327200,0.03,172.1,172.09,165.75699871]
[1739960327401,0.03,172.1,172.09,179.04101268]
[1739960328002,0.03,172.1,172.09,153.36319871]
[1739960328506,0.03,172.1,172.09,15.06319871]
[1739960328917,20.03,172.1,172.09,15.06319871]
[1739960329105,0.03,172.1,172.09,10.84953017]
[1739960329305,5.8405,172.1,172.09,10.84953017]
[1739960330402,0.03,172.1,172.09,10.84953017]
[1739960332499,0.03,172.1,172.09,149.14953017]
[1739960332704,0.03,172.1,172.09,170.41220114]
[1739960333125,0.03,172.1,172.09,10.84953017]
[1739960333908,0.03,172.1,172.09,149.14953017]
[1739960341908,0.03,172.1,172.09,176.22310114]
[1739960343230,0.03,172.1,172.09,177.22310114]
[1739960344331,0.03,172.1,172.09,180.44893371]
[1739960344850,0.03,172.1,172.09,181.44893371]
[1739960345637,0.03,172.1,172.09,180.44893371]
[1739960346334,0.03,172.1,172.09,43.14893371]
[1739960346646,0.03,172.1,172.09,44.14893371]
[1739960347145,0.03,172.1,172.09,182.44893371]
[1739960347816,0.03,172.1,172.09,180.44893371]
[1739960348714,0.03,172.1,172.09,172.46805117]
[1739960349347,0.03,172.1,172.09,173.46805117]
[1739960349551,0.03,172.1,172.09,172.46805117]
[1739960349845,0.03,172.1,172.09,173.46805117]
[1739960350427,0.03,172.1,172.09,174.46805117]
[1739960351043,0.03,172.1,172.09,173.46805117]
[1739960351219,0.03,172.1,172.09,174.46805117]
[1739960351947,0.03,172.13,172.12,16.7459]
[1739960352154,49.35004536,172.29,172.19,1.0]
[1739960352447,5.8345,172.28,172.23,13.28178843]
[1739960352648,5.8345,172.28,172.23,162.4313186]
[1739960352962,0.03,172.28,172.25,13.28178843]
[1739960353118,0.03,172.28,172.26,13.28178843]
[1739960353325,0.03,172.28,172.27,13.28178843]
[1739960353520,0.03,172.28,172.27,162.4313186]
[1739960353854,0.03,172.28,172.27,149.14953017]
[1739960355848,13.31178843,172.28,172.27,10.84953017]
[1739960356028,13.31178843,172.28,172.24,149.14953017]
[1739960356343,13.28178843,172.26,172.24,149.14953017]
[1739960357043,13.28178843,172.25,172.24,10.84953017]
[1739960357439,13.28178843,172.26,172.24,10.84953017]
[1739960357630,5.8055,172.25,172.24,10.84953017]
[1739960358234,19.08728843,172.25,172.24,10.84953017]
[1739960360133,5.8055,172.25,172.24,10.84953017]
[1739960360719,19.08728843,172.25,172.24,10.84953017]
[1739960361336,19.08688843,172.27,172.24,10.84953017]
[1739960361535,0.03,172.28,172.24,10.84953017]
[1739960361536,13.31178843,172.28,172.24,10.84953017]
[1739960361753,0.03,172.28,172.24,10.84953017]
[1739960362133,5.8345,172.28,172.24,10.84953017]
[1739960362341,0.03,172.28,172.24,162.4313186]
[1739960362854,0.03,172.28,172.24,149.14953017]
[1739960367141,13.28178843,172.25,172.24,10.84953017]